fUSD/lending_fUSD_20240521
["ID","MTS","AMOUNT","RATE_DAILY","PERIOD"]
[327613153,1716252664858,-717.83,0.00038904,6]
[327613154,1716252664868,-500.0,0.00038904,6]
[327613155,1716252664879,-569.89,0.00038904,6]
[327613156,1716252664893,-1365.29,0.00038904,6]
[327613157,1716252664904,-1551.62,0.00038904,6]
[327613158,1716252664918,-500.0,0.00038904,6]
[327613159,1716252664930,-500.0,0.00038904,6]
[327613160,1716252664940,-621.78,0.00038904,6]
[327613161,1716252664950,-500.0,0.00038904,6]
[327613162,1716252664960,-2070.76,0.00038904,6]
[327613163,1716252664969,-500.0,0.00038904,6]
[327613164,1716252664979,-500.0,0.00038904,6]
[327613165,1716252664989,-802.27,0.00038904,6]
[327613166,1716252664999,-1057.01,0.00038904,6]
[327613167,1716252665011,-1532.63,0.00038904,6]
[327613168,1716252665021,-1349.61,0.00038904,6]
[327613169,1716252665030,-673.01,0.00038904,6]
[327613170,1716252665041,-996.73,0.00038904,6]
[327613171,1716252665053,-500.0,0.00038904,6]
[327613172,1716252665063,-500.0,0.00038904,6]
[327613173,1716252665072,-752.59,0.00038904,6]
[327613174,1716252665081,-1569.8,0.00038904,6]
[327613175,1716252665092,-815.42,0.00038904,6]
[327613176,1716252665102,-691.07,0.00038904,6]
[327613177,1716252665111,-865.8,0.00038904,6]
[327613178,1716252665121,-1918.89,0.00038904,6]
[327613179,1716252665130,-643.68,0.00038904,6]
[327613180,1716252665139,-871.17,0.00038904,6]
[327613181,1716252665149,-1259.23,0.00038904,6]
[327613182,1716252665162,-500.0,0.00038904,6]
[327613183,1716252665171,-500.0,0.00038904,6]
[327613184,1716252665181,-500.0,0.00038904,6]
[327613185,1716252665191,-895.51,0.00038904,6]
[327613186,1716252665200,-500.0,0.00038904,6]
[327613187,1716252665210,-500.0,0.00038904,2]
[327613188,1716252665220,-525.44,0.00038904,6]
[327613189,1716252665229,-1820.42,0.00038904,6]
[327613190,1716252665239,-1110.64,0.00038904,6]
[327613191,1716252665248,-569.09,0.00038904,6]
[327613192,1716252665257,-592.38,0.00038904,6]
[327613193,1716252665267,-504.03,0.00038904,6]
[327613194,1716252665277,-500.0,0.00038904,6]
[327613195,1716252665287,-500.0,0.00038904,6]
[327613196,1716252665296,-500.0,0.00038904,6]
[327613197,1716252665306,-728.93,0.00038904,6]
[327613198,1716252665316,-733.7,0.00038904,6]
[327613199,1716252665328,-951.45,0.00038904,6]
[327613200,1716252665337,-1064.85,0.00038904,6]
[327613201,1716252665348,-763.8,0.00038904,6]
[327613202,1716252665358,-721.63,0.00038904,6]
[327613203,1716252665368,-1003.99,0.00038904,6]
[327613204,1716252665377,-500.0,0.00038904,6]
[327613205,1716252665387,-500.0,0.00038904,6]
[327613206,1716252665399,-736.5,0.00038904,6]
[327613207,1716252665411,-620.35,0.00038904,6]
[327613208,1716252665421,-500.0,0.00038904,6]
[327613209,1716252665430,-1162.92,0.00038904,6]
[327613210,1716252665439,-767.98,0.00038904,6]
[327613211,1716252665449,-500.0,0.00038904,6]
[327613212,1716252665460,-551.65,0.00038904,6]
[327613213,1716252665470,-925.12,0.00038904,6]
[327613214,1716252665479,-500.0,0.00038904,6]
[327613215,1716252665489,-500.0,0.00038904,6]
[327613216,1716252665500,-500.0,0.00038904,6]
[327613217,1716252665511,-500.0,0.00038904,6]
[327613218,1716252665520,-500.0,0.00038904,6]
[327613219,1716252665531,-1113.27,0.00038904,6]
[327613220,1716252665540,-770.96,0.00038904,6]
[327613221,1716252665550,-500.0,0.00038904,6]
[327613222,1716252665559,-680.58,0.00038904,6]
[327613223,1716252665569,-1050.82,0.00038904,6]
[327613224,1716252665579,-500.0,0.00038904,6]
[327613225,1716252665588,-540.51089863,0.00038904,6]
[327613226,1716252665597,-506.14,0.00038904,2]
[327613227,1716252665607,-500.0,0.00038904,6]
[327613228,1716252665617,-1562.1,0.00038904,6]
[327613229,1716252665626,-500.0,0.00038904,6]
[327613230,1716252665635,-500.0,0.00038904,6]
[327613231,1716252665645,-868.51,0.00038904,6]
[327613232,1716252665655,-628.51,0.00038904,6]
[327613233,1716252665666,-1136.5,0.00038904,6]
[327613234,1716252665676,-500.0,0.00038904,6]
[327613235,1716252665686,-500.0,0.00038904,6]
[327613236,1716252665696,-500.0,0.00038904,6]
[327613237,1716252665706,-973.11,0.00038904,6]
[327613238,1716252665717,-1868.38,0.00038904,6]
[327613239,1716252665727,-500.0,0.00038904,6]
[327613240,1716252665737,-1164.11,0.00038904,6]
[327613241,1716252665746,-1137.65,0.00038904,6]
[327613242,1716252665756,-500.0,0.00038904,6]
[327613243,1716252665765,-1173.27,0.00038904,6]
[327613244,1716252665775,-544.17,0.00038904,6]
[327613245,1716252665784,-500.0,0.00038904,6]
[327613246,1716252665794,-627.97,0.00038904,6]
[327613247,1716252665804,-771.01,0.00038904,6]
[327613248,1716252665813,-941.43,0.00038904,6]
[327613249,1716252665822,-641.1,0.00038904,6]
[327613250,1716252665831,-554.86,0.00038904,6]
[327613251,1716252665840,-1506.6,0.00038904,6]
[327613252,1716252665850,-1778.47,0.00038904,6]
[327613253,1716252665859,-1131.35,0.00038904,6]
[327613254,1716252665868,-760.1,0.00038904,6]
[327613255,1716252665877,-880.92,0.00038904,6]
[327613256,1716252665887,-668.74,0.00038904,6]
[327613257,1716252665896,-500.0,0.00038904,6]
[327613258,1716252665906,-2367.93,0.00038904,6]
[327613259,1716252665919,-2736.76,0.00038904,6]
[327613260,1716252665927,-1173.02,0.00038904,6]
[327613261,1716252665936,-1316.63,0.00038904,6]
[327613262,1716252665945,-500.0,0.00038904,6]
[327613263,1716252665955,-726.56,0.00038904,6]
[327613264,1716252665964,-500.0,0.00038904,6]
[327613265,1716252665973,-1846.7,0.00038904,6]
[327613266,1716252665983,-739.03,0.00038904,6]
[327613267,1716252665992,-1157.34,0.00038904,6]
[327613268,1716252666002,-500.0,0.00038904,6]
[327613269,1716252666011,-1208.53,0.00038904,6]
[327613270,1716252666020,-1627.45,0.00038904,6]
[327613271,1716252666030,-670.28,0.00038904,6]
[327613272,1716252666039,-500.0,0.00038904,6]
[327613273,1716252666048,-500.0,0.00038904,6]
[327613274,1716252666057,-500.0,0.00038904,6]
[327613275,1716252666066,-513.96,0.00038904,6]
[327613276,1716252666076,-500.0,0.00038904,6]
[327613277,1716252666085,-500.0,0.00038904,6]
[327613278,1716252666094,-1035.78,0.00038904,6]
[327613279,1716252666103,-2230.16,0.00038904,6]
[327613280,1716252666113,-811.3,0.00038904,6]
[327613281,1716252666122,-1337.87,0.00038904,6]
[327613282,1716252666131,-500.0,0.00038904,6]
[327613283,1716252666140,-500.0,0.00038904,6]
[327613284,1716252666150,-649.65,0.00038904,6]
[327613285,1716252666162,-1141.28,0.00038904,6]
[327613286,1716252666171,-500.0,0.00038904,6]
[327613287,1716252666180,-500.0,0.00038904,6]
[327613288,1716252666190,-500.0,0.00038904,6]
[327613289,1716252666199,-500.0,0.00038904,6]
[327613290,1716252666208,-1128.76,0.00038904,6]
[327613291,1716252666217,-500.0,0.00038904,6]
[327613292,1716252666227,-2174.21,0.00038904,6]
[327613293,1716252666236,-808.03,0.00038904,6]
[327613294,1716252666245,-556.14,0.00038904,6]
[327613295,1716252666254,-500.0,0.00038904,6]
[327613296,1716252666263,-712.07,0.00038904,6]
[327613297,1716252666272,-500.0,0.00038904,6]
[327613298,1716252666281,-1704.14,0.00038904,6]
[327613299,1716252666291,-731.82,0.00038904,6]
[327613300,1716252666300,-500.0,0.00038904,6]
[327613301,1716252666310,-500.0,0.00038904,6]
[327613302,1716252666321,-1015.29,0.00038904,6]
[327613303,1716252666332,-895.68,0.00038904,6]
[327613304,1716252666343,-586.1,0.00038904,6]
[327613305,1716252666352,-500.0,0.00038904,6]
[327613306,1716252666428,-500.0,0.00038904,6]
[327613307,1716252666437,-957.34,0.00038904,6]
[327613308,1716252666446,-13179.3,0.00038904,6]
[327613309,1716252666455,-1123.34,0.00038904,6]
[327613310,1716252666464,-500.0,0.00038904,6]
[327613311,1716252666473,-749.52,0.00038904,6]
[327613312,1716252666482,-798.64,0.00038904,6]
[327613313,1716252666491,-1432.7,0.00038904,6]
[327613314,1716252666501,-954.51,0.00038904,6]
[327613315,1716252666511,-500.0,0.00038904,6]
[327613316,1716252666520,-1127.68,0.00038904,6]
[327613317,1716252666530,-500.0,0.00038904,6]
[327613318,1716252666539,-500.0,0.00038904,6]
[327613319,1716252666549,-500.0,0.00038904,6]
[327613320,1716252666558,-500.0,0.00038904,6]
[327613321,1716252666567,-500.0,0.00038904,6]
[327613322,1716252666576,-589.23,0.00038904,6]
[327613323,1716252666585,-711.92,0.00038904,6]
[327613324,1716252666594,-543.0,0.00038904,6]
[327613325,1716252666603,-675.29,0.00038904,6]
[327613326,1716252666612,-500.0,0.00038904,6]
[327613327,1716252666621,-549.28148937,0.00038904,6]
[327613328,1716252666630,-500.0,0.00038904,6]
[327613329,1716252666639,-500.0,0.00038904,6]
[327613330,1716252666649,-1119.42,0.00038904,6]
[327613331,1716252666658,-500.0,0.00038904,6]
[327613332,1716252666671,-1644.84,0.00038904,6]
[327613333,1716252666680,-2031.55,0.00038904,6]
[327613334,1716252666689,-500.0,0.00038904,6]
[327613335,1716252666698,-500.0,0.00038904,6]
[327613336,1716252666707,-887.07,0.00038904,6]
[327613337,1716252666716,-753.3,0.00038904,6]
[327613338,1716252666725,-1130.53,0.00038904,6]
[327613339,1716252666735,-500.0,0.00038904,6]
[327613340,1716252666745,-500.0,0.00038904,6]
[327613341,1716252666754,-1394.63,0.00038904,6]
[327613342,1716252666763,-1440.18,0.00038904,6]
[327613343,1716252666773,-770.49,0.00038904,6]
[327613344,1716252666782,-500.0,0.00038904,6]
[327613345,1716252666791,-500.0,0.00038904,6]
[327613346,1716252666801,-500.0,0.00038904,6]
[327613347,1716252666811,-1137.41,0.00038904,6]
[327613348,1716252666820,-1332.86,0.00038904,6]
[327613349,1716252666830,-500.0,0.00038904,6]
[327613350,1716252666839,-602.66,0.00038904,6]
[327613351,1716252666848,-500.0,0.00038904,6]
[327613352,1716252666858,-574.94,0.00038904,6]
[327613353,1716252666868,-500.0,0.00038904,6]
[327613354,1716252666877,-500.0,0.00038904,6]
[327613355,1716252666886,-500.0,0.00038904,6]
[327613356,1716252666896,-500.0,0.00038904,6]
[327613357,1716252666905,-722.78,0.00038904,6]
[327613358,1716252666920,-2091.96,0.00038904,6]
[327613359,1716252666930,-500.0,0.00038904,6]
[327613360,1716252666939,-504.71,0.00038904,6]
[327613361,1716252666949,-646.75,0.00038904,6]
[327613362,1716252666958,-500.0,0.00038904,6]
[327613363,1716252666967,-944.32,0.00038904,6]
[327613364,1716252666976,-13981.79,0.00038904,6]
[327613365,1716252666986,-739.69,0.00038904,6]
[327613366,1716252666995,-500.0,0.00038904,6]
[327613367,1716252667005,-500.0,0.00038904,6]
[327613368,1716252667015,-923.68,0.00038904,6]
[327613369,1716252667025,-914.29,0.00038904,6]
[327613370,1716252667035,-500.0,0.00038904,6]
[327613371,1716252667045,-580.74,0.00038904,6]
[327613372,1716252667055,-500.0,0.00038904,6]
[327613373,1716252667065,-500.0,0.00038904,6]
[327613374,1716252667075,-632.88,0.00038904,6]
[327613375,1716252667086,-1191.33,0.00038904,6]
[327613376,1716252667095,-517.2,0.00038904,6]
[327613377,1716252667105,-1350.42,0.00038904,6]
[327613378,1716252667114,-626.4,0.00038904,6]
[327613379,1716252667123,-690.26,0.00038904,6]
[327613380,1716252667134,-1575.26,0.00038904,6]
[327613381,1716252667144,-500.0,0.00038904,6]
[327613382,1716252667153,-500.0,0.00038904,6]
[327613383,1716252667166,-500.0,0.00038904,6]
[327613384,1716252667175,-1987.37,0.00038904,6]
[327613385,1716252667184,-500.0,0.00038904,6]
[327613386,1716252667193,-508.54,0.00038904,6]
[327613387,1716252667203,-2520.38,0.00038904,6]
[327613388,1716252667213,-662.71,0.00038904,6]
[327613389,1716252667223,-685.24,0.00038904,6]
[327613390,1716252667232,-500.0,0.00038904,6]
[327613391,1716252667241,-500.0,0.00038904,6]
[327613392,1716252667249,-500.0,0.00038904,6]
[327613393,1716252667258,-670.91,0.00038904,6]
[327613394,1716252667267,-500.0,0.00038904,6]
[327613395,1716252667276,-611.55,0.00038904,6]
[327613396,1716252667286,-1215.77,0.00038904,6]
[327613397,1716252667294,-500.0,0.00038904,6]
[327613398,1716252667308,-500.0,0.00038904,6]
[327613399,1716252667317,-500.0,0.00038904,6]
[327613400,1716252667326,-500.0,0.00038904,6]
[327613401,1716252667335,-500.0,0.00038904,6]
[327613402,1716252667346,-500.0,0.00038904,6]
[327613403,1716252667356,-500.0,0.00038904,6]
[327613404,1716252667365,-495.66750005,0.00038904,6]
[327613405,1716252667374,-512.98,0.00038904,6]
[327613406,1716252667383,-1083.68,0.00038904,6]
[327613407,1716252667394,-500.0,0.00038904,6]
[327613408,1716252667403,-1199.6,0.00038904,6]
[327613409,1716252667419,-500.0,0.00038904,6]
[327613410,1716252667429,-500.0,0.00038904,6]
[327613411,1716252667438,-689.57,0.00038904,6]
[327613412,1716252667448,-686.69,0.00038904,6]
[327613413,1716252667457,-2032.0,0.00038904,6]
[327613414,1716252667466,-765.99,0.00038904,6]
[327613415,1716252667475,-500.0,0.00038904,6]
[327613416,1716252667484,-1159.09,0.00038904,6]
[327613417,1716252667494,-500.0,0.00038904,6]
[327613418,1716252667503,-808.88,0.00038904,6]
[327613419,1716252667512,-500.0,0.00038904,6]
[327613420,1716252667522,-500.0,0.00038904,6]
[327613421,1716252667531,-506.86,0.00038904,6]
[327613422,1716252667540,-444.79,0.00038904,6]
[327613423,1716252667549,-3274.03,0.00038904,6]
[327613424,1716252667559,-500.0,0.00038904,6]
[327613425,1716252667568,-500.0,0.00038904,6]
[327613426,1716252667577,-2151.85,0.00038904,6]
[327613427,1716252667586,-854.9,0.00038904,6]
[327613428,1716252667595,-1038.55,0.00038904,6]
[327613429,1716252667604,-1106.55,0.00038904,6]
[327613430,1716252667613,-500.0,0.00038904,6]
[327613431,1716252667623,-151.0,0.00038904,14]
[327613432,1716252667633,-151.0,0.00038904,14]
[327613433,1716252667642,-500.0,0.00038904,6]
[327613434,1716252667651,-2614.54,0.00038904,6]
[327613435,1716252667665,-600.26,0.00038904,6]
[327613436,1716252667674,-1530.91,0.00038904,6]
[327613437,1716252667683,-709.9,0.00038904,6]
[327613438,1716252667693,-1128.54,0.00038904,6]
[327613439,1716252667702,-500.0,0.00038904,6]
[327613440,1716252667711,-500.0,0.00038904,6]
[327613441,1716252667720,-503.09,0.00038904,6]
[327613442,1716252667730,-500.0,0.00038904,6]
[327613443,1716252667739,-2463.51,0.00038904,6]
[327613444,1716252667748,-1318.53,0.00038904,6]
[327613445,1716252667757,-2324.54,0.00038904,6]
[327613446,1716252667766,-500.0,0.00038904,6]
[327613447,1716252667775,-500.0,0.00038904,6]
[327613448,1716252667784,-500.0,0.00038904,6]
[327613449,1716252667794,-3308.2,0.00038904,6]
[327613450,1716252667803,-941.48,0.00038904,6]
[327613451,1716252667813,-500.0,0.00038904,6]
[327613452,1716252667823,-1864.97,0.00038904,6]
[327613453,1716252667832,-1392.15,0.00038904,6]
[327613454,1716252667842,-500.0,0.00038904,6]
[327613455,1716252667851,-500.0,0.00038904,6]
[327613456,1716252667861,-500.0,0.00038904,6]
[327613457,1716252667870,-500.0,0.00038904,6]
[327613458,1716252667879,-500.0,0.00038904,6]
[327613459,1716252667888,-500.0,0.00038904,6]
[327613460,1716252667897,-500.0,0.00038904,6]
[327613461,1716252667906,-1430.51,0.00038904,6]
[327613462,1716252667919,-500.0,0.00038904,6]
[327613463,1716252667928,-1057.55,0.00038904,6]
[327613464,1716252667938,-2247.59,0.00038904,6]
[327613465,1716252667948,-1564.02,0.00038904,6]
[327613466,1716252667957,-1572.88,0.00038904,6]
[327613467,1716252667966,-2828.54,0.00038904,6]
[327613468,1716252667974,-500.0,0.00038904,6]
[327613469,1716252667984,-1495.96,0.00038904,6]
[327613470,1716252667993,-500.0,0.00038904,6]
[327613471,1716252668002,-1243.65,0.00038904,6]
[327613472,1716252668011,-818.8,0.00038904,6]
[327613473,1716252668020,-500.0,0.00038904,6]
[327613474,1716252668029,-1850.95,0.00038904,6]
[327613475,1716252668039,-500.0,0.00038904,6]
[327613476,1716252668048,-744.44,0.00038904,6]
[327613477,1716252668057,-500.0,0.00038904,6]
[327613478,1716252668066,-1139.63,0.00038904,6]
[327613479,1716252668075,-883.28,0.00038904,6]
[327613480,1716252668085,-4524.45,0.00038904,6]
[327613481,1716252668095,-6333.73,0.00038904,6]
[327613482,1716252668105,-1360.87,0.00038904,6]
[327613483,1716252668115,-500.0,0.00038904,6]
[327613484,1716252668126,-685.26,0.00038904,6]
[327613485,1716252668136,-7441.53,0.00038904,6]
[327613486,1716252668145,-500.0,0.00038904,6]
[327613487,1716252668155,-1193.08,0.00038904,6]
[327613488,1716252668169,-1040.61,0.00038904,6]
[327613489,1716252668183,-2556.77,0.00038904,6]
[327613490,1716252668193,-500.0,0.00038904,6]
[327613491,1716252668202,-500.0,0.00038904,6]
[327613492,1716252668212,-500.0,0.00038904,6]
[327613493,1716252668223,-4754.9,0.00038904,6]
[327613494,1716252668232,-33008.64,0.00038904,6]
[327613495,1716252668241,-500.0,0.00038904,6]
[327613496,1716252668251,-1207.95,0.00038904,6]
[327613497,1716252668261,-1090.3,0.00038904,6]
[327613498,1716252668271,-637.99,0.00038904,6]
[327613499,1716252668282,-4287.64,0.00038904,6]
[327613500,1716252668291,-785.43,0.00038904,6]
[327613501,1716252668302,-1632.44,0.00038904,6]
[327613502,1716252668312,-863.64,0.00038904,6]
[327613503,1716252668324,-2537.53,0.00038904,6]
[327613504,1716252668334,-770.47,0.00038904,6]
[327613505,1716252668344,-520.54525006,0.00038904,6]
[327613506,1716252668355,-2444.33,0.00038904,6]
[327613507,1716252668366,-500.0,0.00038904,6]
[327613508,1716252668376,-500.0,0.00038904,6]
[327613509,1716252668387,-1818.2,0.00038904,6]
[327613510,1716252668399,-500.0,0.00038904,6]
[327613511,1716252668408,-1705.62,0.00038904,6]
[327613512,1716252668420,-3216.85,0.00038904,6]
[327613513,1716252668431,-10497.11,0.00038904,6]
[327613514,1716252668441,-1596.03,0.00038904,6]
[327613515,1716252668451,-723.68,0.00038904,6]
[327613516,1716252668460,-2477.96,0.00038904,6]
[327613517,1716252668471,-1124.92,0.00038904,6]
[327613518,1716252668480,-150.0,0.00038904,6]
[327613519,1716252668490,-3590.21,0.00038904,6]
[327613520,1716252668499,-500.0,0.00038904,6]
[327613521,1716252668508,-904.69,0.00038904,6]
[327613522,1716252668518,-500.0,0.00038904,6]
[327613523,1716252668527,-500.0,0.00038904,6]
[327613524,1716252668537,-500.0,0.00038904,6]
[327613525,1716252668547,-1597.68,0.00038904,6]
[327613526,1716252668557,-526.7,0.00038904,6]
[327613527,1716252668567,-4455.36,0.00038904,6]
[327613528,1716252668576,-5241.54,0.00038904,6]
[327613529,1716252668586,-1774.57,0.00038904,6]
[327613530,1716252668595,-547.52,0.00038904,6]
[327613531,1716252668604,-932.22,0.00038904,6]
[327613532,1716252668614,-741.06,0.00038904,6]
[327613533,1716252668625,-500.0,0.00038904,6]
[327613534,1716252668635,-500.0,0.00038904,6]
[327613535,1716252668646,-500.0,0.00038904,6]
[327613536,1716252668655,-563.87,0.00038904,6]
[327613537,1716252668668,-7517.87,0.00038904,6]
[327613538,1716252668678,-500.0,0.00038904,6]
[327613539,1716252668686,-1145.91,0.00038904,6]
[327613540,1716252668696,-500.0,0.00038904,6]
[327613541,1716252668705,-837.21,0.00038904,6]
[327613542,1716252668715,-500.0,0.00038904,6]
[327613543,1716252668723,-2328.38,0.00038904,6]
[327613544,1716252668733,-1924.56,0.00038904,6]
[327613545,1716252668742,-1569.49,0.00038904,6]
[327613546,1716252668751,-500.0,0.00038904,6]
[327613547,1716252668760,-1758.06,0.00038904,6]
[327613548,1716252668769,-1454.4,0.00038904,6]
[327613549,1716252668778,-2823.5,0.00038904,6]
[327613550,1716252668787,-500.0,0.00038904,6]
[327613551,1716252668796,-1172.91,0.00038904,6]
[327613552,1716252668805,-500.0,0.00038904,6]
[327613553,1716252668814,-2115.45,0.00038904,6]
[327613554,1716252668824,-500.0,0.00038904,6]
[327613555,1716252668833,-500.0,0.00038904,6]
[327613556,1716252668842,-500.0,0.00038904,6]
[327613557,1716252668851,-500.5,0.00038904,6]
[327613558,1716252668860,-742.24,0.00038904,6]
[327613559,1716252668869,-686.81,0.00038904,6]
[327613560,1716252668878,-19525.58,0.00038904,6]
[327613561,1716252668887,-2054.73,0.00038904,6]
[327613562,1716252668896,-500.0,0.00038904,6]
[327613563,1716252668905,-3561.4,0.00038904,6]
[327613564,1716252668916,-18257.53,0.00038904,6]
[327613565,1716252668925,-500.0,0.00038904,6]
[327613566,1716252668935,-991.0,0.00038904,6]
[327613567,1716252668944,-1076.3,0.00038904,6]
[327613568,1716252668953,-3257.37,0.00038904,6]
[327613569,1716252668962,-1929.7,0.00038904,6]
[327613570,1716252668972,-1392.29,0.00038904,6]
[327613571,1716252668981,-1233.23,0.00038904,6]
[327613572,1716252668990,-1293.14,0.00038904,6]
[327613573,1716252668999,-500.0,0.00038904,6]
[327613574,1716252669009,-1394.59,0.00038904,6]
[327613575,1716252669019,-500.0,0.00038904,6]
[327613576,1716252669028,-1694.01,0.00038904,6]
[327613577,1716252669037,-1176.41,0.00038904,6]
[327613578,1716252669046,-698.21,0.00038904,6]
[327613579,1716252669055,-500.0,0.00038904,6]
[327613580,1716252669065,-1753.99,0.00038904,6]
[327613581,1716252669074,-807.32,0.00038904,6]
[327613582,1716252669084,-12456.84,0.00038904,6]
[327613583,1716252669093,-1751.13,0.00038904,6]
[327613584,1716252669111,-500.0,0.00038904,6]
[327613585,1716252669123,-1672.14,0.00038904,6]
[327613586,1716252669133,-2265.79,0.00038904,6]
[327613587,1716252669143,-1916.5,0.00038904,6]
[327613588,1716252669152,-760.26,0.00038904,6]
[327613589,1716252669164,-500.0,0.00038904,6]
[327613590,1716252669173,-500.0,0.00038904,6]
[327613591,1716252669183,-754.62,0.00038904,6]
[327613592,1716252669192,-500.0,0.00038904,6]
[327613593,1716252669202,-1782.34,0.00038904,6]
[327613594,1716252669211,-500.0,0.00038904,6]
[327613595,1716252669221,-2518.22,0.00038904,6]
[327613596,1716252669231,-500.0,0.00038904,6]
[327613597,1716252669240,-500.0,0.00038904,6]
[327613598,1716252669250,-641.02,0.00038904,6]
[327613599,1716252669259,-2838.35,0.00038904,6]
[327613600,1716252669269,-500.0,0.00038904,6]
[327613601,1716252669279,-786.73,0.00038904,6]
[327613602,1716252669288,-9150.84,0.00038904,6]
[327613603,1716252669298,-1581.98,0.00038904,6]
[327613604,1716252669313,-2900.1,0.00038904,6]
[327613605,1716252669323,-1433.43,0.00038904,6]
[327613606,1716252669333,-2097.36,0.00038904,6]
[327613607,1716252669343,-500.0,0.00038904,6]
[327613608,1716252669354,-1107.19,0.00038904,6]
[327613609,1716252669363,-1184.1,0.00038904,6]
[327613610,1716252669373,-790.25,0.00038904,6]
[327613611,1716252669386,-1849.84,0.00038904,6]
[327613612,1716252669396,-1249.4,0.00038904,6]
[327613613,1716252669406,-508.24,0.00038904,6]
[327613614,1716252669421,-500.0,0.00038904,6]
[327613615,1716252669431,-1350.34,0.00038904,6]
[327613616,1716252669440,-953.69,0.00038904,6]
[327613617,1716252669450,-2238.96,0.00038904,6]
[327613618,1716252669459,-1409.84,0.00038904,6]
[327613619,1716252669468,-1307.48,0.00038904,6]
[327613620,1716252669478,-581.45,0.00038904,6]
[327613621,1716252669488,-500.0,0.00038904,6]
[327613622,1716252669497,-3019.67,0.00038904,6]
[327613623,1716252669507,-1092.61,0.00038904,6]
[327613624,1716252669516,-4180.68,0.00038904,6]
[327613625,1716252669526,-870.92,0.00038904,6]
[327613626,1716252669536,-1439.55,0.00038904,6]
[327613627,1716252669545,-500.0,0.00038904,6]
[327613628,1716252669555,-500.0,0.00038904,6]
[327613629,1716252669564,-500.0,0.00038904,6]
[327613630,1716252669573,-8354.4,0.00038904,6]
[327613631,1716252669583,-1249.94,0.00038904,6]
[327613632,1716252669592,-567.31451238,0.00038904,6]
[327613633,1716252669602,-500.0,0.00038904,6]
[327613634,1716252669611,-6844.64,0.00038904,6]
[327613635,1716252669620,-10848.53,0.00038904,6]
[327613636,1716252669629,-2971.31,0.00038904,6]
[327613637,1716252669639,-500.0,0.00038904,6]
[327613638,1716252669648,-1068.63,0.00038904,6]
[327613639,1716252669658,-3066.28,0.00038904,6]
[327613640,1716252669671,-1052.49,0.00038904,6]
[327613641,1716252669680,-3155.39,0.00038904,6]
[327613642,1716252669689,-3906.52,0.00038904,6]
[327613643,1716252669699,-1879.71,0.00038904,6]
[327613644,1716252669709,-564.16,0.00038904,6]
[327613645,1716252669719,-1104.06,0.00038904,6]
[327613646,1716252669728,-2076.65,0.00038904,6]
[327613647,1716252669738,-2052.1,0.00038904,6]
[327613648,1716252669748,-1427.12,0.00038904,6]
[327613649,1716252669757,-1616.4,0.00038904,6]
[327613650,1716252669767,-1435.88,0.00038904,6]
[327613651,1716252669776,-5429.06,0.00038904,6]
[327613652,1716252669786,-521.04,0.00038904,6]